bitfinex/quotes_ETHUSD_20250611
["timestamp","ask_amount","ask_price","bid_price","bid_amount"]
[1749648171328,47.57388977,2809.5,2808.1,9.39277758]
[1749648171329,1.406,2809.3,2808.1,9.39277758]
[1749648171646,18.35277758,2809.1,2808.1,10.0]
[1749648171849,3.795,2809.0,2808.8,0.1776]
[1749648173571,13.795,2809.1,2808.8,0.1776]
[1749648176274,13.795,2809.1,2809.0,0.1776]
[1749648179455,15.3151,2809.1,2808.2,8.40177758]
[1749648179660,15.3151,2809.1,2808.8,0.1776]
[1749648179661,9.77977758,2809.0,2808.8,0.1776]
[1749648179861,3.794,2808.9,2808.8,0.1776]
[1749648180881,1.427,2809.0,2808.8,0.1776]
[1749648181292,3.794,2808.9,2808.8,0.1776]
[1749648181847,3.794,2809.0,2808.8,0.1776]
[1749648182290,1.3799,2809.2,2808.8,18.35277758]
[1749648182291,3.794,2809.1,2808.8,18.35277758]
[1749648182456,3.794,2809.1,2808.9,0.1776]
[1749648182658,3.794,2809.2,2809.0,0.1776]
[1749648182858,5.2716,2809.3,2809.0,0.1776]
[1749648184066,8.35277758,2809.2,2809.0,0.1776]
[1749648184273,1.3975,2809.0,2808.6,0.1776]
[1749648184586,11.3975,2808.7,2808.0,10.18540433]
[1749648184892,11.3975,2808.7,2808.5,0.1776]
[1749648185092,3.794,2808.6,2808.5,0.1776]
[1749648185597,10.0,2808.5,2807.5,0.35854631]
[1749648185895,10.0,2808.3,2808.1,0.1776]
[1749648186602,1.6575,2808.6,2808.1,0.1776]
[1749648186783,8.35277758,2809.0,2808.3,10.0]
[1749648186784,5.4505,2809.0,2808.3,10.0]
[1749648186986,10.0,2808.9,2808.7,0.1776]
[1749648187283,10.0,2809.1,2808.9,0.1776]
[1749648188061,5.2671,2809.2,2808.9,0.1776]
[1749648188484,10.0,2809.1,2808.9,0.1776]
[1749648188888,10.0,2809.1,2808.6,0.049]
[1749648188889,10.0,2809.1,2809.0,0.1776]
[1749648189091,5.2671,2809.2,2809.0,0.1776]
[1749648189968,3.793,2809.2,2809.0,0.1776]
[1749648190522,5.31193,2809.2,2808.1,10.0]
[1749648190803,1.4376,2809.1,2808.7,0.1776]
[1749648191020,3.793,2809.0,2808.7,0.1776]
[1749648192787,3.793,2809.0,2808.0,10.0]
[1749648192788,3.793,2809.0,2808.0,28.476575]
[1749648192960,3.9706,2809.0,2808.5,0.1776]
[1749648193163,1.3977,2808.9,2808.5,0.1776]
[1749648193703,1.3977,2808.9,2808.0,26.157494]
[1749648193866,1.3977,2808.9,2808.6,0.1776]
[1749648194270,0.1776,2809.1,2808.6,0.1776]
[1749648194593,3.792,2809.2,2808.8,0.1776]
[1749648195121,1.4971,2809.3,2808.8,0.1776]
[1749648195417,10.0,2809.4,2809.1,0.1776]
[1749648195619,37.26008977,2809.5,2809.3,0.1776]
[1749648195790,36.22008977,2809.5,2809.3,0.1776]
[1749648196778,35.62008977,2809.5,2809.3,0.1776]
[1749648197409,35.62008977,2809.5,2808.9,30.0]
[1749648199392,35.62008977,2809.5,2808.9,13.672108]
[1749648199913,1.4942,2809.4,2808.9,13.672108]
[1749648200094,1.4942,2809.4,2808.9,5.421985]
[1749648201897,35.62008977,2809.5,2808.9,5.421985]
[1749648202105,35.62008977,2809.5,2809.0,18.828103]
[1749648202428,35.62008977,2809.5,2809.0,17.843178]
[1749648202734,35.62008977,2809.5,2808.9,24.365809]
[1749648203082,35.62008977,2809.5,2809.1,10.0]
[1749648203347,35.62008977,2809.5,2809.0,0.1495]
[1749648204035,35.62008977,2809.5,2809.0,3.70947264]
[1749648204396,35.62008977,2809.5,2809.0,0.1495]
[1749648204792,35.62008977,2809.5,2809.1,10.0]
[1749648204996,35.62008977,2809.5,2809.0,0.1495]
[1749648205625,35.62008977,2809.5,2809.1,10.0]
[1749648206290,35.62008977,2809.5,2809.4,0.1776]
[1749648207237,45.62008977,2809.5,2809.4,0.1776]
[1749648207395,1.4798,2809.3,2808.3,2.891858]
[1749648207750,10.0,2809.1,2808.9,0.1776]
[1749648208820,10.0,2809.2,2808.9,0.1776]
[1749648209143,10.0,2809.2,2808.6,10.0]
[1749648209327,10.0,2809.2,2809.1,0.1776]
[1749648211139,1.4798,2809.3,2809.1,0.1776]
[1749648211140,11.4798,2809.3,2809.1,0.1776]
[1749648212538,1.483,2809.1,2808.7,0.1776]
[1749648212833,1.4468,2808.7,2808.1,0.1776]
[1749648213013,10.0,2808.5,2808.1,0.1776]
[1749648213209,3.789,2808.4,2808.1,0.1776]
[1749648215808,3.789,2808.4,2807.6,0.18544817]
[1749648216010,3.789,2808.4,2808.1,0.1776]
[1749648217003,1.461,2808.5,2808.1,0.1776]
[1749648217343,0.54266,2808.4,2808.1,0.1776]
[1749648218245,1.6386,2808.5,2808.1,0.1776]
[1749648220056,1.461,2808.5,2808.1,0.1776]
[1749648220215,1.6386,2808.5,2808.1,0.1776]
[1749648220755,1.461,2808.5,2807.2,10.0]
[1749648220963,0.1776,2808.2,2807.7,0.1776]
[1749648221449,1.4507,2808.1,2807.7,0.1776]
[1749648222638,1.4507,2808.1,2807.6,0.36238764]
[1749648222953,1.4507,2808.1,2807.9,0.1776]
[1749648223313,1.4507,2808.1,2807.5,10.0]
[1749648223516,1.4507,2808.1,2807.7,0.1776]
[1749648226947,1.4907,2808.3,2807.7,14.358529]
[1749648227260,1.4907,2808.3,2808.0,0.1776]
[1749648228761,0.1776,2808.4,2808.0,0.1776]
[1749648228931,1.4153,2808.5,2808.2,0.1776]
[1749648229923,1.4153,2808.7,2808.2,0.50237634]
[1749648230165,1.4153,2808.7,2808.5,0.1776]
[1749648232764,1.4153,2808.7,2808.0,10.0]
[1749648232976,1.4153,2808.7,2808.0,23.917057]
[1749648233163,1.4153,2808.7,2808.1,3.706698]
[1749648233332,1.4153,2808.7,2808.2,3.600001]
[1749648233527,1.4153,2808.7,2808.0,10.1537]
[1749648233528,1.4153,2808.7,2808.0,10.0]
[1749648234568,1.4153,2808.7,2808.2,10.0]
[1749648234863,1.4153,2808.7,2808.1,20.924984]
[1749648235068,4.728267,2809.0,2808.2,10.0]
[1749648235271,4.728267,2809.0,2808.7,30.0]
[1749648235456,4.728267,2809.0,2808.7,15.210524]
[1749648236773,4.728267,2809.0,2808.8,0.1537]
[1749648236977,4.728267,2809.0,2808.9,10.0]
[1749648237728,4.728267,2809.0,2808.9,20.35583847]
[1749648237975,4.728267,2809.0,2808.9,27.03969247]
[1749648238133,4.728267,2809.0,2808.9,15.81562747]
[1749648238328,4.728267,2809.0,2808.9,5.459789]
[1749648239135,4.728267,2809.0,2808.8,0.1537]
[1749648239373,4.728267,2809.0,2808.9,3.128223]
[1749648240135,4.15051102,2809.0,2808.9,3.128223]
[1749648240572,4.15051102,2809.0,2808.7,3.40902177]
[1749648240887,4.15051102,2809.0,2808.9,11.475647]
[1749648241184,2.87049943,2809.0,2808.9,9.57104]
[1749648241334,2.87049943,2809.0,2808.7,19.611292]
[1749648241766,2.87049943,2809.0,2808.8,10.0]
[1749648242077,2.87049943,2809.0,2808.8,2.522669]
[1749648242761,2.87049943,2809.0,2808.9,0.1776]
[1749648243970,2.87049943,2809.0,2808.9,32.93228649]
[1749648243971,2.56109943,2809.0,2808.9,32.93228649]
[1749648244171,2.56109943,2809.0,2808.9,55.69538301]
[1749648244579,2.17109943,2809.0,2808.9,52.13527052]
[1749648244779,2.17109943,2809.0,2808.9,52.49843693]
[1749648244992,2.17109943,2809.0,2808.9,56.05854942]
[1749648245187,2.17109943,2809.0,2808.9,52.49843693]
[1749648245460,2.17109943,2809.0,2808.9,49.64573693]
[1749648246107,2.17109943,2809.0,2808.9,47.46557693]
[1749648246474,2.17109943,2809.0,2808.9,33.92501575]
[1749648247513,2.17109943,2809.0,2808.9,37.48512824]
[1749648247715,2.17109943,2809.0,2808.9,27.48512824]
[1749648247908,2.17109943,2809.0,2808.9,18.03082536]
[1749648248275,2.17109943,2809.0,2808.9,21.25624849]
[1749648248697,2.17109943,2809.0,2808.9,15.379184]
[1749648249013,2.17109943,2809.0,2808.9,3.1057961]
[1749648249170,2.17109943,2809.0,2808.4,0.46051165]
[1749648249512,2.17109943,2809.0,2807.4,0.35321147]
[1749648249513,1.5116,2808.6,2807.5,1.034]
[1749648249720,1.5116,2808.4,2807.6,10.923007]
[1749648250421,2.17109943,2809.0,2807.9,12.76309652]
[1749648250622,1.5992,2808.9,2808.3,28.249136]
[1749648250820,1.5992,2808.9,2808.5,29.60611868]
[1749648251019,2.17109943,2809.0,2808.5,18.64979]
[1749648251316,2.17109943,2809.0,2808.5,17.043174]
[1749648251493,2.17109943,2809.0,2808.6,21.204154]
[1749648251699,2.17109943,2809.0,2808.5,20.756867]
[1749648252382,2.17109943,2809.0,2808.5,20.314843]
[1749648252720,2.17109943,2809.0,2808.5,18.754543]
[1749648253021,2.17109943,2809.0,2808.5,10.7945]
[1749648253459,2.17109943,2809.0,2808.6,3.56042972]
[1749648253631,2.17109943,2809.0,2808.8,28.249136]
[1749648253826,2.17109943,2809.0,2808.8,18.311497]
[1749648253995,2.17109943,2809.0,2808.6,10.0]
[1749648254336,2.17109943,2809.0,2808.6,10.866365]
[1749648254829,2.17109943,2809.0,2808.8,10.0]
[1749648255002,2.17109943,2809.0,2808.6,10.0]
[1749648255321,2.17109943,2809.0,2808.7,16.158427]
[1749648255484,2.17109943,2809.0,2808.7,10.0]
[1749648255689,2.17109943,2809.0,2808.7,17.68144]
[1749648256440,2.17109943,2809.0,2808.7,17.43144]
[1749648257252,1.59331736,2809.0,2808.5,3.56061228]
[1749648257458,1.59331736,2809.0,2808.7,10.0]
[1749648259064,1.59331736,2809.0,2808.8,22.42823251]
[1749648259268,1.59331736,2809.0,2808.9,0.1776]
[1749648259446,1.59331736,2809.0,2808.9,7.986368]
[1749648259953,1.59331736,2809.0,2808.9,5.815368]
[1749648261014,1.59331736,2809.0,2808.9,9.596368]
[1749648261977,1.59331736,2809.0,2808.9,19.96010584]
[1749648262775,1.59331736,2809.0,2808.9,14.06430384]
[1749648263059,1.59331736,2809.0,2808.9,21.40441633]
[1749648263226,1.59331736,2809.0,2808.9,21.55971633]
[1749648264228,1.59331736,2809.0,2808.9,21.40441633]
[1749648266730,1.59331736,2809.0,2808.9,17.62441633]
[1749648266931,1.59331736,2809.0,2808.9,21.40341633]
[1749648267137,1.59331736,2809.0,2808.9,17.84330384]
[1749648267336,1.01562119,2809.0,2808.9,17.84330384]
[1749648269244,1.01562119,2809.0,2808.9,7.301966]
[1749648269446,1.01562119,2809.0,2808.9,11.03967849]
[1749648272980,1.01562119,2809.0,2808.9,11.39970834]
[1749648273746,1.01562119,2809.0,2808.9,4.06059585]
[1749648274485,1.01562119,2809.0,2808.9,7.62070834]
[1749648274687,1.01562119,2809.0,2808.9,4.06059585]
[1749648275247,1.01562119,2809.0,2808.9,7.83859585]
[1749648276181,1.01562119,2809.0,2808.9,4.06059585]
[1749648276853,1.01562119,2809.0,2808.9,14.06059585]
[1749648277386,0.43790274,2809.0,2808.9,14.06059585]
[1749648278693,0.43790274,2809.0,2808.9,17.62070834]
[1749648283974,0.11810275,2809.0,2808.9,17.62070834]
[1749648286357,0.11810275,2809.0,2808.9,17.83659585]
[1749648286760,0.11810275,2809.0,2808.9,21.39670834]
[1749648287205,0.11810275,2809.0,2808.9,17.83659585]
[1749648287391,0.11810275,2809.0,2808.9,21.39670834]
[1749648287766,0.11810275,2809.0,2808.9,29.75001204]
[1749648288562,0.11810275,2809.0,2808.9,29.90531204]
[1749648288789,35.62008977,2809.5,2809.4,3.55947889]
[1749648288987,33.85547904,2809.5,2809.4,44.71117359]
[1749648289200,33.85547904,2809.5,2809.4,45.43877359]
[1749648289406,33.85547904,2809.5,2809.4,13.887601]
[1749648289565,33.85547904,2809.5,2809.4,3.777601]
[1749648290902,33.85547904,2809.5,2809.4,0.1776]
[1749648291309,33.76649524,2809.5,2809.4,0.1776]
[1749648294503,1.5515,2809.4,2808.9,0.36002985]
[1749648294672,1.5515,2809.4,2809.2,0.1776]
[1749648295606,1.5515,2809.4,2809.1,13.447894]
[1749648295810,1.5515,2809.4,2809.3,0.1776]
[1749648296421,33.76649524,2809.5,2809.4,18.868091]
[1749648296737,32.396602,2809.5,2809.4,21.40932589]
[1749648296936,32.261602,2809.5,2809.4,21.40932589]
[1749648297431,32.09805942,2809.5,2809.4,21.95932589]
[1749648297631,30.32074296,2809.5,2809.4,21.95932589]
[1749648298153,30.32074296,2809.5,2809.4,19.28901689]
[1749648298733,29.74316887,2809.5,2809.4,12.679192]
[1749648298901,29.74316887,2809.5,2809.4,13.78036]
[1749648299102,29.74316887,2809.5,2809.4,10.0]
[1749648300342,29.74316887,2809.5,2809.3,0.1776]
[1749648300504,1.5802,2809.4,2809.3,0.1776]
[1749648301233,29.74316887,2809.5,2809.4,9.305978]
[1749648301621,29.74316887,2809.5,2809.3,0.1776]
[1749648301998,29.74316887,2809.5,2809.4,9.305978]
[1749648302609,29.74316887,2809.5,2809.4,12.86545689]
[1749648303043,29.74316887,2809.5,2809.4,9.305978]
[1749648303217,29.74316887,2809.5,2809.4,2.928143]
[1749648303417,29.74316887,2809.5,2809.3,17.50919419]
[1749648303608,29.74316887,2809.5,2809.4,2.179585]
[1749648304449,29.74316887,2809.5,2809.3,17.50914708]
[1749648304933,29.74316887,2809.5,2809.4,10.0]
[1749648305131,29.74316887,2809.5,2809.4,10.4177]
[1749648305333,29.74316887,2809.5,2809.4,10.0]
[1749648305537,2.9200158,2809.5,2809.4,40.51533974]
[1749648305746,0.36242825,2809.5,2809.4,41.30129388]
[1749648305947,0.36242825,2809.5,2809.4,41.62922058]
[1749648306252,0.01349903,2809.5,2809.4,41.62922058]
[1749648306556,1.5183,2811.0,2810.3,9.305978]
[1749648306771,1.5183,2811.3,2810.9,32.86347859]
[1749648306913,1.5183,2811.5,2811.0,9.305978]
[1749648307108,1.5183,2811.5,2811.2,10.0]
[1749648307426,1.5291,2811.3,2810.4,10.0]
[1749648307612,1.5427,2811.1,2810.4,0.30328018]
[1749648307814,1.5427,2811.1,2810.5,7.271535]
[1749648308053,1.5427,2811.1,2810.5,10.0]
[1749648308349,1.5427,2811.1,2810.4,10.0]
[1749648308588,1.5427,2811.1,2810.6,9.305978]
[1749648308757,1.5427,2811.1,2810.5,9.305978]
[1749648309064,2.07407,2811.1,2810.5,8.57868]
[1749648309270,1.5689,2811.0,2810.4,10.0]
[1749648309871,1.5689,2811.0,2809.9,4.12884234]
[1749648310018,1.5689,2811.0,2809.9,0.35784234]
[1749648310353,1.5689,2811.0,2809.9,9.305978]
[1749648310561,6.82961375,2810.9,2810.1,9.305978]
[1749648310768,1.6072,2810.8,2810.0,10.0]
[1749648310967,1.6072,2810.8,2810.0,3.2745]
[1749648312363,1.5342,2810.7,2809.3,10.239]
[1749648312562,14.28806746,2810.5,2809.4,6.308914]
[1749648312870,1.5342,2810.3,2809.4,4.3045]
[1749648313072,1.5342,2810.3,2809.6,10.0]
[1749648313368,1.5342,2810.3,2809.3,1.29951709]
[1749648313523,3.34000675,2810.3,2809.6,9.305978]
[1749648313855,1.5342,2810.3,2809.6,9.305978]
[1749648314050,1.5342,2810.3,2809.5,10.0]
[1749648314260,1.5342,2810.3,2809.5,0.35402284]
[1749648314469,1.5342,2810.3,2809.3,11.29951709]
[1749648314668,1.5342,2810.3,2809.4,10.0]
[1749648314853,1.5888,2810.2,2809.5,10.0]
[1749648315047,1.5888,2810.2,2809.6,19.305978]
[1749648315354,1.5888,2810.2,2809.5,10.0]
[1749648315855,1.5888,2810.2,2810.1,0.1776]
[1749648316744,12.75386746,2811.3,2810.1,0.1776]
[1749648316745,1.6246,2810.4,2810.1,0.1776]
[1749648316944,0.1776,2810.8,2810.3,0.1776]
[1749648317143,1.6246,2810.7,2810.3,0.1776]
[1749648317657,1.6246,2810.7,2810.2,10.0]
[1749648317961,1.6246,2810.7,2810.1,10.0]
[1749648317962,1.6246,2810.7,2810.6,0.1776]
[1749648318530,1.6246,2810.7,2810.0,3.55865691]
[1749648318531,1.6246,2810.7,2810.0,10.0]
[1749648318732,1.6246,2810.7,2810.4,0.1776]
[1749648318931,1.98242,2810.7,2810.2,0.1776]
[1749648319467,1.8438,2810.4,2809.9,0.1776]
[1749648320870,1.8438,2810.4,2809.4,10.0]
[1749648321178,1.8438,2810.4,2809.8,0.1776]
[1749648321323,1.83666675,2810.3,2809.8,0.1776]
[1749648321657,1.6364,2810.3,2809.8,0.1776]
[1749648322519,1.6364,2810.3,2809.7,22.86507379]
[1749648322722,0.1776,2810.6,2810.1,0.1776]
[1749648322962,1.5599,2810.5,2810.4,0.1776]
[1749648323162,3.769,2810.8,2810.4,0.1776]
[1749648323368,1.5599,2810.7,2810.6,0.1776]
[1749648326148,2.09679,2810.7,2810.6,0.1776]
[1749648326352,2.09679,2810.7,2810.3,0.1776]
[1749648326552,1.6248,2810.6,2809.7,0.36127835]
[1749648326755,1.6248,2810.6,2809.6,10.0]
[1749648326756,1.6248,2810.6,2810.2,0.1776]
[1749648327908,1.5846,2810.2,2809.2,0.1553]
[1749648328047,1.5949,2810.0,2809.8,0.1776]
[1749648330293,3.768,2810.1,2809.8,0.1776]
[1749648330784,1.5794,2810.2,2809.8,0.1776]
[1749648330988,5.3474,2810.2,2809.8,0.1776]
[1749648332994,5.8989,2810.2,2809.8,0.1776]
[1749648333197,1.6163,2810.1,2809.8,0.1776]
[1749648333356,0.1776,2810.0,2809.5,0.1776]
[1749648333557,1.6163,2809.9,2809.5,0.1776]
[1749648334068,5.3833,2809.9,2809.3,0.1553]
[1749648334296,1.6163,2809.9,2809.7,0.1776]
[1749648334799,0.1776,2810.2,2809.8,10.0]
[1749648334800,1.5858,2810.2,2809.8,10.0]
[1749648335023,1.7634,2810.6,2809.9,12.75386746]
[1749648335149,1.024,2811.1,2809.9,12.75386746]
[1749648335150,1.024,2811.1,2810.1,12.86456608]
[1749648335502,1.6008,2811.0,2810.3,0.1553]
[1749648335865,1.6008,2811.0,2810.6,0.1776]
[1749648336572,1.5979,2811.4,2810.8,0.1776]
[1749648336771,1.5979,2811.4,2810.8,9.483578]
[1749648336968,5.3649,2811.4,2810.8,9.638878]
[1749648337755,1.5979,2811.4,2810.8,9.638878]
[1749648339211,0.1776,2811.5,2810.9,9.305978]
[1749648339408,1.5536,2811.7,2810.9,9.305978]
[1749648339693,1.5536,2811.7,2811.4,0.1776]
[1749648341399,1.6267,2811.9,2811.6,0.1776]
[1749648341572,0.04,2811.9,2811.6,0.1776]
[1749648341899,0.04,2811.9,2811.8,0.1776]
[1749648342759,0.04,2811.9,2811.8,0.538881]
[1749648343762,0.04,2811.9,2811.8,9.844859]
[1749648344897,0.04,2811.9,2811.8,5.993423]
[1749648345866,0.26674281,2814.3,2811.8,5.993423]
[1749648345867,1.6506,2813.0,2811.9,10.1553]
[1749648346072,1.6506,2813.0,2812.6,0.1776]
[1749648346279,1.6506,2812.7,2811.4,1.45386055]
[1749648346483,0.1776,2812.2,2811.7,0.1776]
[1749648347106,1.5183,2812.1,2811.7,0.1776]
[1749648348474,1.5183,2812.1,2811.8,0.1776]
[1749648348676,1.5305,2812.3,2811.5,3.55674813]
[1749648348873,1.5305,2812.3,2811.3,0.35500771]
[1749648349076,1.5305,2812.1,2811.7,0.1776]
[1749648349892,1.5305,2812.1,2811.4,3.55694021]
[1749648350099,1.5305,2812.1,2811.9,0.1776]
[1749648350984,1.5305,2812.1,2811.2,10.0]
[1749648351185,0.52945,2812.0,2811.7,0.1776]
[1749648351380,0.52945,2812.0,2811.1,0.26685193]
[1749648351585,1.7015,2811.9,2811.4,0.1776]
[1749648360721,5.2859,2811.9,2811.6,0.1776]
[1749648361024,0.52859,2811.8,2811.6,0.1776]
[1749648362939,1.6612,2812.3,2811.2,10.0]
[1749648363237,3.762,2812.2,2811.9,0.1776]
[1749648364049,3.762,2812.1,2811.9,0.1776]
[1749648365341,3.761,2812.0,2811.9,0.1776]
[1749648365743,0.1776,2812.7,2811.9,0.1776]
[1749648365902,1.5583,2812.6,2812.0,9.805169]
[1749648366103,3.761,2812.5,2812.3,0.1776]
[1749648366329,3.761,2812.4,2812.3,0.1776]
[1749648367223,3.761,2812.4,2812.0,0.1776]
[1749648367407,1.548,2812.3,2812.0,0.1776]
[1749648367609,3.761,2812.2,2812.0,0.1776]
[1749648368326,1.792,2812.5,2812.0,0.1776]
[1749648368647,1.7936,2812.5,2812.1,0.1776]
[1749648368834,3.761,2812.4,2812.1,0.1776]
[1749648370048,1.7936,2812.5,2811.5,10.0]
[1749648370250,3.76,2812.3,2811.9,0.1776]
[1749648370559,1.5541,2812.1,2811.9,0.1776]
[1749648372165,1.5541,2812.1,2811.2,10.0]
[1749648372333,1.5541,2812.1,2811.7,0.1776]
[1749648374467,1.5541,2812.1,2811.1,0.36403032]
[1749648374675,1.6106,2811.8,2811.4,0.1776]
[1749648374879,3.76,2811.7,2811.4,0.1776]
[1749648375037,0.1776,2811.6,2811.1,0.1776]
[1749648375238,1.6106,2811.5,2811.1,0.1776]
[1749648375439,0.17882,2811.4,2810.7,10.0]
[1749648375640,0.17882,2811.4,2811.0,0.1776]
[1749648375959,1.7882,2811.5,2811.0,0.1776]
[1749648377076,3.759,2811.4,2811.0,0.34689882]
[1749648377246,3.759,2811.3,2810.8,10.0]
[1749648377449,3.759,2811.4,2810.9,17.071994]
[1749648377634,3.759,2811.5,2811.2,0.1776]
[1749648378144,1.5808,2812.0,2811.4,0.1776]
[1749648378351,3.759,2811.6,2811.4,0.1776]
[1749648378545,3.759,2811.6,2811.5,10.0]
[1749648378759,3.759,2811.6,2811.5,0.1776]
[1749648378950,1.5808,2812.0,2811.5,0.1776]
[1749648379152,3.759,2811.8,2811.5,0.1776]
[1749648379350,3.759,2811.8,2811.7,0.1776]
[1749648380251,4.29298,2811.8,2811.0,0.35162313]
[1749648380460,1.5387,2811.7,2811.3,0.1776]
[1749648380775,2.139628,2811.7,2811.3,0.1776]
[1749648381667,3.759,2811.6,2811.3,0.1776]
[1749648382038,3.759,2811.6,2811.0,0.35329262]
[1749648382244,3.9366,2811.6,2811.1,0.1776]
[1749648382919,0.1776,2811.6,2811.1,0.1776]
[1749648383047,3.759,2811.5,2811.1,0.1776]
[1749648383245,3.759,2811.4,2810.8,3.55770328]
[1749648383453,3.759,2811.4,2811.2,0.1776]
[1749648384052,3.759,2811.5,2811.2,0.1776]
[1749648384253,3.759,2811.7,2811.3,13.956537]
[1749648384453,3.759,2811.8,2811.4,0.1776]
[1749648384693,3.759,2811.8,2811.0,10.35280077]
[1749648384990,3.759,2811.8,2811.5,0.1776]
[1749648385192,1.5793,2811.9,2811.5,0.1776]
[1749648385393,3.759,2811.8,2811.5,0.1776]
[1749648385863,1.5793,2811.9,2811.5,0.1776]
[1749648386293,0.1776,2812.0,2811.5,0.1776]
[1749648388983,5.3337,2812.1,2811.4,14.415874]
[1749648389157,5.3337,2812.1,2811.7,0.1776]
[1749648393165,1.5757,2812.1,2811.7,0.1776]
[1749648393399,3.757,2812.0,2811.7,0.1776]
[1749648396475,0.1776,2812.2,2811.7,0.1776]
[1749648396669,3.757,2812.1,2811.9,0.1776]
[1749648397301,0.1776,2812.4,2811.9,0.1776]
[1749648397500,3.757,2812.3,2811.9,0.1776]
[1749648397701,0.1776,2812.4,2811.9,0.1776]
[1749648397884,3.756,2812.3,2812.1,0.1776]
[1749648399166,3.756,2812.4,2812.1,0.1776]
[1749648399601,3.756,2812.5,2812.1,0.1776]
[1749648401579,3.756,2812.5,2812.0,0.1776]
[1749648402135,3.756,2812.5,2811.8,3.55638011]
[1749648402282,3.756,2812.5,2812.2,0.1776]
[1749648404728,3.756,2812.5,2811.7,10.0]
[1749648404893,3.9336,2812.5,2812.0,0.1776]
[1749648405219,14.28306746,2812.4,2811.4,10.0]
[1749648405513,14.28306746,2812.4,2811.7,0.1776]
[1749648405514,0.1776,2812.2,2811.7,0.1776]
[1749648405827,1.6378,2812.1,2811.7,0.1776]
[1749648406027,3.755,2812.0,2811.7,0.1776]
[1749648409339,2.02873253,2812.5,2811.5,3.55673911]
[1749648409516,1.7454,2812.5,2811.9,0.1776]
[1749648409714,3.754,2812.6,2812.1,10.0]
[1749648409941,3.754,2812.6,2812.2,0.1776]
[1749648410842,1.7248,2812.8,2812.2,0.1776]
[1749648411240,0.04,2812.9,2812.5,0.1776]
[1749648411446,0.04,2812.9,2812.8,0.0888794]
[1749648411930,0.04,2812.9,2812.8,0.2664794]
[1749648412452,0.04,2812.9,2812.8,14.2726314]
[1749648413002,0.04,2812.9,2812.8,12.8267504]
[1749648413611,3.754,2813.8,2813.0,25.322083]
[1749648413880,3.9316,2813.8,2813.0,0.35263069]
[1749648414153,3.9316,2813.8,2813.3,0.1776]
[1749648414348,4.4754684,2813.8,2813.3,0.1776]
[1749648418362,3.9316,2813.8,2813.3,0.1776]
[1749648418551,3.752,2813.8,2813.1,0.48067473]
[1749648418752,0.5,2815.8,2813.5,0.1776]
[1749648419050,4.65452292,2815.9,2813.6,12.71728872]
[1749648419051,1.5863,2814.3,2813.6,12.71728872]
[1749648419367,1.5863,2814.3,2813.7,15.244928]
[1749648419665,3.752,2814.5,2813.7,15.244928]
[1749648419850,1.6249,2814.5,2813.8,10.0]
[1749648420048,1.6249,2814.5,2813.8,40.0]
[1749648420266,1.6249,2814.5,2813.8,33.73516]
[1749648420493,0.04,2814.9,2813.8,33.73516]
[1749648420494,5.3769,2814.7,2813.8,17.828311]
[1749648420631,5.3769,2814.7,2813.1,0.79218381]
[1749648420632,1.6085,2814.1,2813.3,6.747215]
[1749648420834,1.6085,2814.1,2813.6,10.0]
[1749648421063,1.5899,2813.7,2813.0,0.34759794]
[1749648421383,2.72471882,2813.7,2812.7,3.55518131]
[1749648421530,1.5899,2814.3,2813.2,10.0]
[1749648421730,5.3419,2814.3,2813.5,13.982692]
[1749648421933,5.3419,2814.3,2813.5,9.938785]
[1749648422142,1.5899,2814.3,2813.5,9.938785]
[1749648422343,3.751,2814.2,2813.5,4.370561]
[1749648422670,1.5899,2814.3,2813.7,13.50275]
[1749648422851,5.2993,2814.5,2813.8,35.469666]
[1749648423186,5.2993,2814.5,2813.8,18.736576]
[1749648423371,5.2993,2814.5,2813.8,15.772067]
[1749648423579,5.2993,2814.5,2813.4,10.0]
[1749648423774,5.2993,2814.5,2813.5,10.0]
[1749648424089,5.2993,2814.5,2813.3,13.55448338]
[1749648424289,5.2993,2814.5,2813.5,10.0]
[1749648425386,5.2993,2814.5,2813.3,10.0]
[1749648425692,5.2993,2814.5,2813.4,10.0]
[1749648425890,5.2993,2814.5,2813.6,10.0]
[1749648426096,5.2993,2814.5,2813.4,0.55]
[1749648426252,1.5483,2814.5,2813.7,25.822151]
[1749648426578,1.5483,2814.5,2813.8,34.11582685]
[1749648426754,1.6215,2814.7,2813.8,34.66582685]
[1749648426950,1.6215,2814.7,2814.2,10.0]
[1749648427152,0.04,2814.9,2814.2,10.0]
[1749648427357,0.04,2814.9,2814.3,20.81615972]
[1749648427671,0.04,2814.9,2814.3,4.053628]
[1749648427977,1.5171,2814.8,2814.0,5.013333]
[1749648428178,1.5171,2814.8,2813.8,13.928472]
[1749648428384,1.5171,2814.8,2814.1,25.926765]
[1749648428578,1.5171,2814.8,2814.2,30.0]
[1749648428784,1.5171,2814.8,2814.5,0.1776]
[1749648428983,0.04,2814.9,2814.3,10.0]
[1749648429186,0.04,2814.9,2814.8,0.1776]
[1749648430568,0.04,2814.9,2814.2,10.0]
[1749648430773,0.04,2814.9,2814.6,0.1776]
[1749648431131,0.04,2814.9,2814.2,10.55]
[1749648431275,0.04,2814.9,2814.8,0.1776]
[1749648431604,0.04,2814.9,2813.9,16.30754588]
[1749648431605,1.6473,2814.8,2814.6,0.1776]
[1749648431804,1.8249,2814.8,2814.3,0.1776]
[1749648432002,1.46187675,2814.7,2814.3,0.1776]
[1749648432177,1.8249,2814.8,2814.3,0.1776]
[1749648432775,1.5721,2814.7,2813.7,5.0]